[Event "January 9 Late 2024"]
[Site "https://www.chess.com"]
[Date "2024.01.09"]
[Round "5"]
[White "Sarkar, Justin"]
[Black "Sadovsky, Artem"]
[Result "0-1"]
[Board "135"]
[TimeControl "180+1"]
[WhiteFideId "2010011"]
[BlackFideId "4155840"]
[WhiteElo "2315"]
[BlackElo "2546"]
[WhiteTeam "USA"]
[BlackTeam "FID"]
[WhiteClock "0:00:00"]
[BlackClock "0:00:12"]

1. e4 {[%clk 0:02:44]}  g6 {[%clk 0:03:00]} 2. d4 {[%clk 0:02:43]}  Bg7 {[%clk 0:03:00]} 3. c4 {[%clk 0:02:39]}  d6 {[%clk 0:03:00]} 4. Nc3 {[%clk 0:02:38]}  e5 {[%clk 0:03:00]} 5. Nf3 {[%clk 0:02:35]}  exd4 {[%clk 0:02:59]} 6. Nxd4 {[%clk 0:02:36]}  Nf6 {[%clk 0:03:00]} 7. f3 {[%clk 0:02:19]}  O-O {[%clk 0:03:01]} 8. Be3 {[%clk 0:02:17]}  c6 {[%clk 0:03:00]} 9. Qb3 {[%clk 0:02:03]}  d5 {[%clk 0:02:50]} 10. cxd5 {[%clk 0:01:58]}  cxd5 {[%clk 0:02:32]} 11. O-O-O {[%clk 0:01:53]}  dxe4 {[%clk 0:02:22]} 12. Nf5 {[%clk 0:01:35]}  Bxf5 {[%clk 0:01:59]} 13. Rxd8 {[%clk 0:01:32]}  Rxd8 {[%clk 0:02:00]} 14. Qxb7 {[%clk 0:01:25]}  Nbd7 {[%clk 0:02:00]} 15. fxe4 {[%clk 0:01:24]}  Rab8 {[%clk 0:01:54]} 16. Qxa7 {[%clk 0:01:19]}  Nxe4 {[%clk 0:01:54]} 17. Nxe4 {[%clk 0:00:34]}  Bxb2+ {[%clk 0:01:52]} 18. Kc2 {[%clk 0:00:28]}  Nc5 {[%clk 0:01:05]} 19. Bxc5 {[%clk 0:00:05]}  Bxe4+ {[%clk 0:01:05]} 20. Bd3 {[%clk 0:00:05]}  Rxd3 {[%clk 0:01:05]} 21. Qxb8+ {[%clk 0:00:03]}  Rd8+ {[%clk 0:01:06]} 22. Kxb2 {[%clk 0:00:02]}  Rxb8+ {[%clk 0:01:06]} 23. Kc3 {[%clk 0:00:02]}  Bxg2 {[%clk 0:01:07]} 24. Rg1 {[%clk 0:00:02]}  Bd5 {[%clk 0:01:04]} 25. a4 {[%clk 0:00:02]}  f5 {[%clk 0:00:40]} 26. Ra1 {[%clk 0:00:01]}  f4 {[%clk 0:00:37]} 27. a5 {[%clk 0:00:02]}  Kf7 {[%clk 0:00:34]} 28. Kd4 {[%clk 0:00:02]}  Ke6 {[%clk 0:00:33]} 29. a6 {[%clk 0:00:02]}  Ba8 {[%clk 0:00:27]} 30. a7 {[%clk 0:00:02]}  Rd8+ {[%clk 0:00:26]} 31. Kc3 {[%clk 0:00:02]}  Rc8 {[%clk 0:00:24]} 32. Kd4 {[%clk 0:00:02]}  Rd8+ {[%clk 0:00:25]} 33. Kc3 {[%clk 0:00:02]}  Kf5 {[%clk 0:00:26]} 34. Rb1 {[%clk 0:00:02]}  Rd5 {[%clk 0:00:19]} 35. Kc4 {[%clk 0:00:01]}  Rd2 {[%clk 0:00:12]} 36. Rb8 {[%clk 0:00:02]}  Bd5+ {[%clk 0:00:12]} 37. Kc3 {[%clk 0:00:01]}  Ra2 {[%clk 0:00:12]} 38. Kd4 {[%clk 0:00:01]}  Bh1 {[%clk 0:00:11]} 39. Rf8+ {[%clk 0:00:00]}  Kg4 {[%clk 0:00:12]} 0-1

[Event "January 9 Late 2024"]
[Site "https://www.chess.com"]
[Date "2024.01.10"]
[Round "5"]
[White "Ferreira, Vitor Hugo Vieira"]
[Black "Kargosha, Bahman"]
[Result "1-0"]
[Board "136"]
[TimeControl "180+1"]
[WhiteFideId "2119765"]
[BlackFideId "12503452"]
[WhiteElo "2545"]
[BlackElo "2309"]
[WhiteTeam "BRA"]
[BlackTeam "AUS"]
[WhiteClock "0:00:50"]
[BlackClock "0:00:04"]

1. d4 {[%clk 0:02:49]}  Nf6 {[%clk 0:02:59]} 2. c4 {[%clk 0:02:30]}  c5 {[%clk 0:02:59]} 3. d5 {[%clk 0:02:29]}  b5 {[%clk 0:02:59]} 4. cxb5 {[%clk 0:02:30]}  a6 {[%clk 0:03:00]} 5. bxa6 {[%clk 0:02:31]}  Bxa6 {[%clk 0:03:00]} 6. Nc3 {[%clk 0:02:31]}  d6 {[%clk 0:03:00]} 7. e4 {[%clk 0:02:31]}  Bxf1 {[%clk 0:03:00]} 8. Kxf1 {[%clk 0:02:32]}  g6 {[%clk 0:03:01]} 9. Nf3 {[%clk 0:02:33]}  Bg7 {[%clk 0:03:01]} 10. g3 {[%clk 0:02:34]}  Qc8 {[%clk 0:03:01]} 11. Kg2 {[%clk 0:02:32]}  O-O {[%clk 0:02:59]} 12. a4 {[%clk 0:02:27]}  Na6 {[%clk 0:02:59]} 13. Ra3 {[%clk 0:02:23]}  Nb4 {[%clk 0:02:58]} 14. Qe2 {[%clk 0:02:23]}  Qa6 {[%clk 0:02:57]} 15. Re1 {[%clk 0:02:19]}  Qxe2 {[%clk 0:02:56]} 16. Rxe2 {[%clk 0:02:19]}  Rfb8 {[%clk 0:02:54]} 17. Bf4 {[%clk 0:02:07]}  Nd7 {[%clk 0:02:47]} 18. e5 {[%clk 0:02:04]}  dxe5 {[%clk 0:02:43]} 19. Nxe5 {[%clk 0:02:05]}  Nxe5 {[%clk 0:02:43]} 20. Bxe5 {[%clk 0:02:06]}  Bxe5 {[%clk 0:02:44]} 21. Rxe5 {[%clk 0:02:07]}  Kf8 {[%clk 0:02:35]} 22. Nb5 {[%clk 0:01:58]}  Rd8 {[%clk 0:02:22]} 23. Rae3 {[%clk 0:01:49]}  Nxd5 {[%clk 0:02:19]} 24. Rxd5 {[%clk 0:01:40]}  Rxd5 {[%clk 0:02:18]} 25. Nc7 {[%clk 0:01:40]}  Rdd8 {[%clk 0:02:10]} 26. Nxa8 {[%clk 0:01:40]}  Rxa8 {[%clk 0:02:11]} 27. b3 {[%clk 0:01:39]}  c4 {[%clk 0:02:09]} 28. bxc4 {[%clk 0:01:35]}  Rxa4 {[%clk 0:02:09]} 29. Rc3 {[%clk 0:01:35]}  Ke8 {[%clk 0:02:09]} 30. Kf3 {[%clk 0:01:32]}  Kd7 {[%clk 0:02:04]} 31. Kf4 {[%clk 0:01:32]}  Kd6 {[%clk 0:02:00]} 32. Kg5 {[%clk 0:01:32]}  Ra5+ {[%clk 0:01:49]} 33. c5+ {[%clk 0:01:26]}  Rxc5+ {[%clk 0:01:47]} 34. Rxc5 {[%clk 0:01:27]}  Kxc5 {[%clk 0:01:47]} 35. Kh6 {[%clk 0:01:28]}  e5 {[%clk 0:00:39]} 36. Kxh7 {[%clk 0:01:26]}  Kd5 {[%clk 0:00:33]} 37. Kg7 {[%clk 0:01:26]}  Ke6 {[%clk 0:00:27]} 38. g4 {[%clk 0:01:20]}  e4 {[%clk 0:00:26]} 39. h4 {[%clk 0:01:19]}  Ke5 {[%clk 0:00:13]} 40. Kxf7 {[%clk 0:01:11]}  Kf4 {[%clk 0:00:12]} 41. h5 {[%clk 0:01:11]}  Kf3 {[%clk 0:00:11]} 42. h6 {[%clk 0:00:54]}  Kxf2 {[%clk 0:00:12]} 43. h7 {[%clk 0:00:55]}  e3 {[%clk 0:00:13]} 44. h8=Q {[%clk 0:00:56]}  e2 {[%clk 0:00:04]} 45. Kxg6 {[%clk 0:00:50]} 1-0

[Event "January 9 Late 2024"]
[Site "https://www.chess.com"]
[Date "2024.01.09"]
[Round "5"]
[White "Liu, Kelsey"]
[Black "Gasparyan, David"]
[Result "0-1"]
[Board "138"]
[TimeControl "180+1"]
[WhiteFideId "30944481"]
[BlackFideId "13311980"]
[WhiteElo "2280"]
[BlackElo "2542"]
[WhiteTeam "USA"]
[BlackTeam "USA"]
[WhiteClock "0:00:16"]
[BlackClock "0:01:30"]

1. e4 {[%clk 0:02:08]}  d6 {[%clk 0:02:55]} 2. d4 {[%clk 0:02:08]}  Nf6 {[%clk 0:02:55]} 3. Nc3 {[%clk 0:02:08]}  Nbd7 {[%clk 0:02:53]} 4. f4 {[%clk 0:02:06]}  e5 {[%clk 0:02:54]} 5. Nf3 {[%clk 0:02:01]}  Be7 {[%clk 0:02:45]} 6. Bc4 {[%clk 0:01:50]}  exd4 {[%clk 0:02:42]} 7. Nxd4 {[%clk 0:01:50]}  O-O {[%clk 0:02:32]} 8. Be3 {[%clk 0:01:45]}  Nc5 {[%clk 0:02:32]} 9. Bd3 {[%clk 0:01:10]}  Ng4 {[%clk 0:02:29]} 10. Bg1 {[%clk 0:01:06]}  a5 {[%clk 0:02:25]} 11. h3 {[%clk 0:01:06]}  Bh4+ {[%clk 0:02:25]} 12. Kf1 {[%clk 0:01:06]}  Nh6 {[%clk 0:02:12]} 13. Qh5 {[%clk 0:01:02]}  Nxd3 {[%clk 0:02:05]} 14. cxd3 {[%clk 0:01:02]}  f5 {[%clk 0:02:03]} 15. g4 {[%clk 0:00:44]}  fxg4 {[%clk 0:02:00]} 16. hxg4 {[%clk 0:00:45]}  Rxf4+ {[%clk 0:02:00]} 17. Kg2 {[%clk 0:00:39]}  Rxg4+ {[%clk 0:02:00]} 18. Kh2 {[%clk 0:00:38]}  Bg3+ {[%clk 0:01:45]} 19. Kg2 {[%clk 0:00:37]}  Rg5 {[%clk 0:01:43]} 20. Qf3 {[%clk 0:00:30]}  Bg4 {[%clk 0:01:36]} 21. Qxg3 {[%clk 0:00:24]}  Bd7 {[%clk 0:01:35]} 22. Bf2 {[%clk 0:00:20]}  Rxg3+ {[%clk 0:01:35]} 23. Bxg3 {[%clk 0:00:21]}  Ng4 {[%clk 0:01:32]} 24. Bf4 {[%clk 0:00:18]}  Qf6 {[%clk 0:01:31]} 25. Raf1 {[%clk 0:00:16]}  Qxd4 {[%clk 0:01:30]} 0-1

[Event "January 9 Late 2024"]
[Site "https://www.chess.com"]
[Date "2024.01.09"]
[Round "5"]
[White "Keller, Peter"]
[Black "Kopczynski, Michal"]
[Result "0-1"]
[Board "140"]
[TimeControl "180+1"]
[WhiteFideId "1272105"]
[BlackFideId "1124200"]
[WhiteElo "2249"]
[BlackElo "2534"]
[WhiteTeam "GER"]
[BlackTeam "POL"]
[WhiteClock "0:00:14"]
[BlackClock "0:00:27"]

1. e4 {[%clk 0:03:00]}  b6 {[%clk 0:02:59]} 2. d4 {[%clk 0:03:00]}  Bb7 {[%clk 0:02:59]} 3. Nc3 {[%clk 0:02:57]}  e6 {[%clk 0:02:59]} 4. Bd3 {[%clk 0:02:54]}  Nf6 {[%clk 0:02:58]} 5. Nge2 {[%clk 0:02:49]}  d5 {[%clk 0:02:58]} 6. e5 {[%clk 0:02:49]}  Nfd7 {[%clk 0:02:58]} 7. Nf4 {[%clk 0:02:38]}  g6 {[%clk 0:02:57]} 8. Nce2 {[%clk 0:02:32]}  c5 {[%clk 0:02:57]} 9. c3 {[%clk 0:02:32]}  Nc6 {[%clk 0:02:58]} 10. h4 {[%clk 0:02:31]}  Qc7 {[%clk 0:02:56]} 11. h5 {[%clk 0:02:30]}  g5 {[%clk 0:02:56]} 12. Nh3 {[%clk 0:02:26]}  h6 {[%clk 0:02:57]} 13. f4 {[%clk 0:02:25]}  gxf4 {[%clk 0:02:53]} 14. O-O {[%clk 0:02:13]}  O-O-O {[%clk 0:02:48]} 15. Rxf4 {[%clk 0:02:04]}  f5 {[%clk 0:02:38]} 16. exf6 {[%clk 0:02:04]}  e5 {[%clk 0:02:37]} 17. dxe5 {[%clk 0:02:04]}  Ncxe5 {[%clk 0:02:33]} 18. Bf5 {[%clk 0:01:56]}  Bd6 {[%clk 0:02:31]} 19. Rf1 {[%clk 0:01:50]}  Kb8 {[%clk 0:02:32]} 20. Nhf4 {[%clk 0:01:45]}  Nf8 {[%clk 0:02:21]} 21. Nxd5 {[%clk 0:01:36]}  Qf7 {[%clk 0:02:21]} 22. Nef4 {[%clk 0:01:31]}  Rg8 {[%clk 0:02:16]} 23. Be3 {[%clk 0:01:09]}  Nc4 {[%clk 0:02:01]} 24. Bc1 {[%clk 0:00:53]}  Rg5 {[%clk 0:01:34]} 25. Be4 {[%clk 0:00:47]}  Re5 {[%clk 0:01:25]} 26. Bf3 {[%clk 0:00:43]}  Ne6 {[%clk 0:01:08]} 27. b3 {[%clk 0:00:40]}  Na5 {[%clk 0:00:59]} 28. c4 {[%clk 0:00:30]}  Nd4 {[%clk 0:00:59]} 29. Bb2 {[%clk 0:00:25]}  Nac6 {[%clk 0:00:58]} 30. Qd3 {[%clk 0:00:19]}  Rg5 {[%clk 0:00:54]} 31. Rae1 {[%clk 0:00:17]}  Ne5 {[%clk 0:00:48]} 32. Rxe5 {[%clk 0:00:15]}  Bxe5 {[%clk 0:00:48]} 33. Qe3 {[%clk 0:00:14]}  Nxf3+ {[%clk 0:00:37]} 34. Rxf3 {[%clk 0:00:12]}  Bxb2 {[%clk 0:00:38]} 35. Ne6 {[%clk 0:00:11]}  Rdxd5 {[%clk 0:00:28]} 36. cxd5 {[%clk 0:00:09]}  Bxd5 {[%clk 0:00:29]} 37. Nxg5 {[%clk 0:00:09]}  hxg5 {[%clk 0:00:29]} 38. Qxg5 {[%clk 0:00:09]}  Bxf3 {[%clk 0:00:28]} 39. gxf3 {[%clk 0:00:10]}  Qxf6 {[%clk 0:00:26]} 40. Qxf6 {[%clk 0:00:09]}  Bxf6 {[%clk 0:00:27]} 41. Kg2 {[%clk 0:00:10]}  Kc7 {[%clk 0:00:27]} 42. Kh3 {[%clk 0:00:11]}  b5 {[%clk 0:00:27]} 43. Kg4 {[%clk 0:00:12]}  c4 {[%clk 0:00:27]} 44. bxc4 {[%clk 0:00:12]}  bxc4 {[%clk 0:00:28]} 45. Kf4 {[%clk 0:00:12]}  c3 {[%clk 0:00:28]} 46. Ke3 {[%clk 0:00:12]}  Kd6 {[%clk 0:00:27]} 47. Kd3 {[%clk 0:00:13]}  Ke6 {[%clk 0:00:27]} 48. a4 {[%clk 0:00:13]}  Kf5 {[%clk 0:00:27]} 49. h6 {[%clk 0:00:13]}  Kf4 {[%clk 0:00:27]} 50. h7 {[%clk 0:00:14]}  Kxf3 {[%clk 0:00:27]} 51. h8=Q {[%clk 0:00:14]}  Bxh8 {[%clk 0:00:27]} 0-1

[Event "January 9 Late 2024"]
[Site "https://www.chess.com"]
[Date "2024.01.09"]
[Round "5"]
[White "Abdi, Farzad"]
[Black "Rangel, Daniel"]
[Result "0-1"]
[Board "141"]
[TimeControl "180+1"]
[WhiteFideId "2076829"]
[BlackFideId "2124475"]
[WhiteElo "2224"]
[BlackElo "2533"]
[WhiteTeam "USA"]
[BlackTeam "BRA"]
[WhiteClock "0:00:10"]
[BlackClock "0:02:07"]

1. d4 {[%clk 0:00:53]}  Nf6 {[%clk 0:02:56]} 2. Nc3 {[%clk 0:00:52]}  d5 {[%clk 0:02:54]} 3. Nf3 {[%clk 0:00:53]}  Bf5 {[%clk 0:02:52]} 4. g3 {[%clk 0:00:53]}  e6 {[%clk 0:02:51]} 5. Bg2 {[%clk 0:00:54]}  c5 {[%clk 0:02:51]} 6. O-O {[%clk 0:00:53]}  Nc6 {[%clk 0:02:51]} 7. h3 {[%clk 0:00:53]}  Nb4 {[%clk 0:02:48]} 8. e4 {[%clk 0:00:49]}  Nxe4 {[%clk 0:02:45]} 9. Nh4 {[%clk 0:00:48]}  g6 {[%clk 0:02:16]} 10. Nxe4 {[%clk 0:00:37]}  Bxe4 {[%clk 0:02:14]} 11. c3 {[%clk 0:00:38]}  Bxg2 {[%clk 0:02:10]} 12. Nxg2 {[%clk 0:00:36]}  Nc6 {[%clk 0:02:10]} 13. dxc5 {[%clk 0:00:30]}  Bxc5 {[%clk 0:02:11]} 14. Bh6 {[%clk 0:00:30]}  Qb6 {[%clk 0:02:08]} 15. b4 {[%clk 0:00:25]}  Bf8 {[%clk 0:02:08]} 16. Bg5 {[%clk 0:00:22]}  Bg7 {[%clk 0:02:08]} 17. Qd2 {[%clk 0:00:15]}  O-O {[%clk 0:02:07]} 18. h4 {[%clk 0:00:14]}  Ne5 {[%clk 0:02:07]} 19. h5 {[%clk 0:00:10]}  Nf3+ {[%clk 0:02:07]} 0-1

[Event "January 9 Late 2024"]
[Site "https://www.chess.com"]
[Date "2024.01.09"]
[Round "5"]
[White "Khater, Sherif"]
[Black "Ferrufino, Boris"]
[Result "1-0"]
[Board "142"]
[TimeControl "180+1"]
[WhiteFideId "2034280"]
[BlackFideId "3300170"]
[WhiteElo "2530"]
[BlackElo "2201"]
[WhiteTeam "USA"]
[BlackTeam "BOL"]
[WhiteClock "0:00:25"]
[BlackClock "0:00:24"]

1. e4 {[%clk 0:03:00]}  c5 {[%clk 0:01:36]} 2. Nc3 {[%clk 0:02:53]}  Nc6 {[%clk 0:01:35]} 3. f4 {[%clk 0:02:37]}  d6 {[%clk 0:01:35]} 4. Nf3 {[%clk 0:02:31]}  e6 {[%clk 0:01:34]} 5. Bb5 {[%clk 0:02:30]}  Bd7 {[%clk 0:01:32]} 6. d3 {[%clk 0:02:27]}  Nge7 {[%clk 0:01:30]} 7. O-O {[%clk 0:02:14]}  a6 {[%clk 0:01:30]} 8. Bxc6 {[%clk 0:02:13]}  Nxc6 {[%clk 0:01:31]} 9. h3 {[%clk 0:02:10]}  Be7 {[%clk 0:01:31]} 10. Qe1 {[%clk 0:02:07]}  O-O {[%clk 0:01:30]} 11. Qf2 {[%clk 0:02:01]}  b5 {[%clk 0:01:30]} 12. Be3 {[%clk 0:01:47]}  Bf6 {[%clk 0:01:21]} 13. g4 {[%clk 0:01:47]}  Rc8 {[%clk 0:01:08]} 14. Rab1 {[%clk 0:01:45]}  Re8 {[%clk 0:00:56]} 15. g5 {[%clk 0:01:44]}  Bxc3 {[%clk 0:00:55]} 16. bxc3 {[%clk 0:01:45]}  b4 {[%clk 0:00:55]} 17. c4 {[%clk 0:01:41]}  e5 {[%clk 0:00:53]} 18. f5 {[%clk 0:01:37]}  Kh8 {[%clk 0:00:50]} 19. h4 {[%clk 0:01:36]}  a5 {[%clk 0:00:49]} 20. h5 {[%clk 0:01:35]}  Nd4 {[%clk 0:00:49]} 21. Bxd4 {[%clk 0:01:21]}  cxd4 {[%clk 0:00:44]} 22. Qg3 {[%clk 0:01:18]}  d5 {[%clk 0:00:41]} 23. Nxe5 {[%clk 0:01:00]}  Qe7 {[%clk 0:00:37]} 24. Nxd7 {[%clk 0:00:55]}  Qxd7 {[%clk 0:00:37]} 25. exd5 {[%clk 0:00:49]}  Re3 {[%clk 0:00:35]} 26. Rf3 {[%clk 0:00:41]}  Rce8 {[%clk 0:00:34]} 27. Rbf1 {[%clk 0:00:37]}  Re2 {[%clk 0:00:34]} 28. R1f2 {[%clk 0:00:36]}  Re1+ {[%clk 0:00:34]} 29. Kg2 {[%clk 0:00:36]}  R1e3 {[%clk 0:00:35]} 30. f6 {[%clk 0:00:32]}  g6 {[%clk 0:00:35]} 31. hxg6 {[%clk 0:00:32]}  fxg6 {[%clk 0:00:27]} 32. f7 {[%clk 0:00:27]}  Rf8 {[%clk 0:00:24]} 33. Rxe3 {[%clk 0:00:25]} 1-0

[Event "January 9 Late 2024"]
[Site "https://www.chess.com"]
[Date "2024.01.09"]
[Round "5"]
[White "Mazi, Leon"]
[Black "Tqebuchava, Zurab"]
[Result "1-0"]
[Board "143"]
[TimeControl "180+1"]
[WhiteFideId "14600315"]
[BlackFideId "13601113"]
[WhiteElo "2523"]
[BlackElo "2192"]
[WhiteTeam "SLO"]
[BlackTeam "GEO"]
[WhiteClock "0:00:29"]
[BlackClock "0:00:00"]

1. e4 {[%clk 0:03:00]}  e5 {[%clk 0:03:00]} 2. Nf3 {[%clk 0:02:59]}  Nc6 {[%clk 0:02:59]} 3. Bb5 {[%clk 0:02:59]}  Be7 {[%clk 0:02:57]} 4. O-O {[%clk 0:02:56]}  d6 {[%clk 0:02:55]} 5. d4 {[%clk 0:02:54]}  exd4 {[%clk 0:02:54]} 6. Nxd4 {[%clk 0:02:54]}  Bd7 {[%clk 0:02:53]} 7. a4 {[%clk 0:02:52]}  Nf6 {[%clk 0:02:51]} 8. Nc3 {[%clk 0:02:51]}  O-O {[%clk 0:02:49]} 9. Re1 {[%clk 0:02:42]}  Nxd4 {[%clk 0:02:40]} 10. Qxd4 {[%clk 0:02:41]}  a6 {[%clk 0:02:29]} 11. Bc4 {[%clk 0:02:36]}  Bc6 {[%clk 0:02:25]} 12. Bg5 {[%clk 0:02:19]}  h6 {[%clk 0:02:22]} 13. Bh4 {[%clk 0:02:17]}  Nd7 {[%clk 0:02:12]} 14. Bxe7 {[%clk 0:02:09]}  Qxe7 {[%clk 0:02:11]} 15. Nd5 {[%clk 0:02:10]}  Bxd5 {[%clk 0:02:10]} 16. exd5 {[%clk 0:02:10]}  Qg5 {[%clk 0:01:56]} 17. Bd3 {[%clk 0:01:58]}  Rfe8 {[%clk 0:01:43]} 18. a5 {[%clk 0:01:50]}  Ne5 {[%clk 0:01:36]} 19. Be2 {[%clk 0:01:48]}  Ng6 {[%clk 0:01:30]} 20. g3 {[%clk 0:01:48]}  Qe5 {[%clk 0:01:16]} 21. Qxe5 {[%clk 0:01:42]}  Rxe5 {[%clk 0:01:15]} 22. Bf3 {[%clk 0:01:42]}  Rae8 {[%clk 0:01:13]} 23. Red1 {[%clk 0:01:40]}  R5e7 {[%clk 0:01:06]} 24. Kf1 {[%clk 0:01:33]}  Ne5 {[%clk 0:01:04]} 25. Bg2 {[%clk 0:01:31]}  g5 {[%clk 0:00:57]} 26. h3 {[%clk 0:01:24]}  Ng6 {[%clk 0:00:53]} 27. Ra4 {[%clk 0:01:22]}  Re2 {[%clk 0:00:50]} 28. Rc4 {[%clk 0:01:20]}  R2e7 {[%clk 0:00:46]} 29. Rb4 {[%clk 0:01:17]}  Re2 {[%clk 0:00:45]} 30. Rc4 {[%clk 0:01:08]}  R2e7 {[%clk 0:00:44]} 31. b4 {[%clk 0:01:05]}  Ne5 {[%clk 0:00:42]} 32. Rc3 {[%clk 0:01:03]}  h5 {[%clk 0:00:41]} 33. Be4 {[%clk 0:00:59]}  Kg7 {[%clk 0:00:38]} 34. Bf5 {[%clk 0:00:58]}  h4 {[%clk 0:00:36]} 35. gxh4 {[%clk 0:00:56]}  gxh4 {[%clk 0:00:36]} 36. Rd4 {[%clk 0:00:56]}  Ng6 {[%clk 0:00:34]} 37. Bd3 {[%clk 0:00:51]}  Re1+ {[%clk 0:00:31]} 38. Kg2 {[%clk 0:00:51]}  R8e5 {[%clk 0:00:29]} 39. Rg4 {[%clk 0:00:45]}  Kf6 {[%clk 0:00:24]} 40. Rxc7 {[%clk 0:00:40]}  Rb1 {[%clk 0:00:21]} 41. Rxb7 {[%clk 0:00:39]}  Ree1 {[%clk 0:00:20]} 42. Bxg6 {[%clk 0:00:38]}  fxg6 {[%clk 0:00:18]} 43. Rb6 {[%clk 0:00:37]}  Rg1+ {[%clk 0:00:18]} 44. Kf3 {[%clk 0:00:37]}  Rxg4 {[%clk 0:00:14]} 45. Kxg4 {[%clk 0:00:37]}  Ke5 {[%clk 0:00:13]} 46. c4 {[%clk 0:00:36]}  Rb2 {[%clk 0:00:11]} 47. f4+ {[%clk 0:00:32]}  Kd4 {[%clk 0:00:10]} 48. c5 {[%clk 0:00:30]}  dxc5 {[%clk 0:00:09]} 49. bxc5 {[%clk 0:00:30]}  Re2 {[%clk 0:00:00]} 50. c6 {[%clk 0:00:29]} 1-0

[Event "January 9 Late 2024"]
[Site "https://www.chess.com"]
[Date "2024.01.09"]
[Round "5"]
[White "Antunes, Luciano Justi"]
[Black "Davidson, Kevin"]
[Result "0-1"]
[Board "144"]
[TimeControl "180+1"]
[WhiteFideId "2126893"]
[BlackFideId "2056810"]
[WhiteElo "2122"]
[BlackElo "2522"]
[WhiteTeam "BRA"]
[BlackTeam "USA"]
[WhiteClock "0:00:00"]
[BlackClock "0:00:19"]

1. d4 {[%clk 0:03:00]}  Nf6 {[%clk 0:02:46]} 2. c4 {[%clk 0:02:57]}  g6 {[%clk 0:02:46]} 3. Nc3 {[%clk 0:02:56]}  Bg7 {[%clk 0:02:46]} 4. e4 {[%clk 0:02:56]}  d6 {[%clk 0:02:46]} 5. Be2 {[%clk 0:02:56]}  O-O {[%clk 0:02:39]} 6. Bg5 {[%clk 0:02:54]}  Nc6 {[%clk 0:02:32]} 7. f4 {[%clk 0:02:34]}  e5 {[%clk 0:02:25]} 8. fxe5 {[%clk 0:02:24]}  dxe5 {[%clk 0:02:24]} 9. d5 {[%clk 0:02:23]}  Nd4 {[%clk 0:02:23]} 10. Nf3 {[%clk 0:02:21]}  h6 {[%clk 0:02:09]} 11. Bh4 {[%clk 0:02:17]}  g5 {[%clk 0:01:33]} 12. Bf2 {[%clk 0:01:47]}  Ng4 {[%clk 0:01:08]} 13. Bxd4 {[%clk 0:01:34]}  exd4 {[%clk 0:01:06]} 14. Nb5 {[%clk 0:01:09]}  Ne3 {[%clk 0:01:00]} 15. Qd3 {[%clk 0:00:58]}  Nxg2+ {[%clk 0:00:56]} 16. Kd2 {[%clk 0:00:52]}  Nf4 {[%clk 0:00:54]} 17. Qb3 {[%clk 0:00:39]}  c6 {[%clk 0:00:44]} 18. Nbxd4 {[%clk 0:00:28]}  g4 {[%clk 0:00:43]} 19. Rhg1 {[%clk 0:00:13]}  gxf3 {[%clk 0:00:38]} 20. Bxf3 {[%clk 0:00:10]}  Qb6 {[%clk 0:00:33]} 21. Qc3 {[%clk 0:00:06]}  Ng6 {[%clk 0:00:23]} 22. c5 {[%clk 0:00:00]}  Qd8 {[%clk 0:00:19]} 0-1

[Event "January 9 Late 2024"]
[Site "https://www.chess.com"]
[Date "2024.01.09"]
[Round "5"]
[White "Gutierrez Olivares, Daniel"]
[Black "Brodsky, David"]
[Result "0-1"]
[Board "145"]
[TimeControl "180+1"]
[WhiteFideId "2264005"]
[BlackFideId "2073250"]
[WhiteElo "2479"]
[BlackElo "2824"]
[WhiteTeam "ESP"]
[BlackTeam "USA"]
[WhiteClock "0:00:01"]
[BlackClock "0:00:06"]

1. c4 {[%clk 0:03:00]}  a6 {[%clk 0:03:00]} 2. b3 {[%clk 0:02:56]}  b5 {[%clk 0:03:00]} 3. Bb2 {[%clk 0:02:55]}  Bb7 {[%clk 0:03:00]} 4. Nf3 {[%clk 0:02:55]}  Nf6 {[%clk 0:02:59]} 5. e3 {[%clk 0:02:55]}  bxc4 {[%clk 0:02:55]} 6. bxc4 {[%clk 0:02:54]}  g6 {[%clk 0:02:54]} 7. Qb3 {[%clk 0:02:54]}  Bxf3 {[%clk 0:02:47]} 8. gxf3 {[%clk 0:02:54]}  Nc6 {[%clk 0:02:47]} 9. Bg2 {[%clk 0:02:50]}  Rb8 {[%clk 0:02:45]} 10. Qc2 {[%clk 0:02:40]}  Bg7 {[%clk 0:02:43]} 11. a3 {[%clk 0:02:37]}  O-O {[%clk 0:02:40]} 12. Nc3 {[%clk 0:02:35]}  Na5 {[%clk 0:02:35]} 13. Ne2 {[%clk 0:02:17]}  Nxc4 {[%clk 0:02:18]} 14. Qxc4 {[%clk 0:02:16]}  Rxb2 {[%clk 0:02:18]} 15. Qxa6 {[%clk 0:02:17]}  c5 {[%clk 0:01:52]} 16. Nc3 {[%clk 0:01:59]}  Qb8 {[%clk 0:01:26]} 17. Qe2 {[%clk 0:01:51]}  d5 {[%clk 0:01:20]} 18. O-O {[%clk 0:01:47]}  Qb3 {[%clk 0:01:11]} 19. Rfc1 {[%clk 0:01:37]}  Ra8 {[%clk 0:00:59]} 20. f4 {[%clk 0:01:28]}  e6 {[%clk 0:00:54]} 21. Nd1 {[%clk 0:01:21]}  Rc2 {[%clk 0:00:51]} 22. Rcb1 {[%clk 0:00:59]}  Qc4 {[%clk 0:00:42]} 23. Qe1 {[%clk 0:00:38]}  Ne4 {[%clk 0:00:35]} 24. Bf1 {[%clk 0:00:37]}  Nxd2 {[%clk 0:00:26]} 25. Bxc4 {[%clk 0:00:27]}  Nf3+ {[%clk 0:00:26]} 26. Kf1 {[%clk 0:00:28]}  Nxe1 {[%clk 0:00:27]} 27. Bb3 {[%clk 0:00:29]}  Bxa1 {[%clk 0:00:20]} 28. Kxe1 {[%clk 0:00:23]}  Bc3+ {[%clk 0:00:14]} 29. Kf1 {[%clk 0:00:19]}  Rd2 {[%clk 0:00:14]} 30. Nxc3 {[%clk 0:00:19]}  Rxa3 {[%clk 0:00:09]} 31. Ke1 {[%clk 0:00:18]}  Rd3 {[%clk 0:00:09]} 32. Bxd5 {[%clk 0:00:07]}  exd5 {[%clk 0:00:07]} 33. Rb8+ {[%clk 0:00:08]}  Kg7 {[%clk 0:00:07]} 34. Nb5 {[%clk 0:00:09]}  Rab3 {[%clk 0:00:06]} 35. Rb7 {[%clk 0:00:07]}  c4 {[%clk 0:00:05]} 36. Ke2 {[%clk 0:00:06]}  Rb2+ {[%clk 0:00:05]} 37. Kf3 {[%clk 0:00:06]}  Rdd2 {[%clk 0:00:05]} 38. Kg3 {[%clk 0:00:02]}  c3 {[%clk 0:00:05]} 39. Rc7 {[%clk 0:00:02]}  Rxb5 {[%clk 0:00:05]} 40. Rxc3 {[%clk 0:00:02]}  Rbb2 {[%clk 0:00:06]} 41. f5 {[%clk 0:00:02]}  Rxf2 {[%clk 0:00:06]} 42. Rd3 {[%clk 0:00:02]}  Rxf5 {[%clk 0:00:06]} 43. h4 {[%clk 0:00:01]}  h5 {[%clk 0:00:06]} 0-1